bitfinex-derivatives/quotes_ETHF0:USTF0_20241026
["timestamp","ask_amount","ask_price","bid_price","bid_amount"]
[1729931497829,3.6378,2472.1,2471.8,0.40498]
[1729931499235,3.6378,2472.1,2471.5,3.2078]
[1729931499636,3.6378,2472.1,2471.7,0.40499]
[1729931500727,4.04274,2472.1,2471.5,3.2078]
[1729931501033,3.6378,2472.1,2471.5,3.2078]
[1729931501229,4.04274,2472.1,2471.7,0.40499]
[1729931502032,3.6378,2472.1,2471.5,3.2078]
[1729931502230,3.6378,2472.1,2471.7,0.40499]
[1729931504434,0.43,2472.1,2471.7,0.40499]
[1729931504629,3.6378,2472.1,2471.7,0.40499]
[1729931505033,3.6378,2472.1,2471.8,0.40498]
[1729931506839,0.43,2472.1,2471.8,0.40498]
[1729931507038,3.6378,2472.1,2471.8,0.40498]
[1729931508736,0.43,2472.1,2471.8,0.40498]
[1729931509041,3.6378,2472.1,2471.8,0.40498]
[1729931509338,3.6378,2472.1,2471.6,0.40502]
[1729931509545,3.6378,2472.1,2471.8,0.40497]
[1729931510634,3.6378,2472.1,2471.5,4.26736389]
[1729931511042,3.6378,2472.1,2471.8,0.40498]
[1729931512043,3.6378,2472.1,2471.5,3.2078]
[1729931512443,3.6378,2472.1,2471.7,0.40499]
[1729931512836,4.04274,2472.1,2471.7,0.40499]
[1729931514245,0.40495,2472.0,2471.6,0.40501]
[1729931515134,0.40495,2472.0,2471.5,0.40502]
[1729931515335,6.88727224,2472.1,2471.6,0.405]
[1729931515535,0.40495,2472.0,2471.6,0.40501]
[1729931516140,6.48233224,2472.1,2471.6,0.40501]
[1729931516339,6.88727224,2472.1,2471.6,0.40501]
[1729931516537,6.88727224,2472.1,2471.7,0.405]
[1729931517841,0.40495,2472.0,2471.4,0.40505]
[1729931518045,6.88727224,2472.1,2471.6,0.405]
[1729931518641,6.88727224,2472.1,2471.7,0.405]
[1729931519439,6.48233224,2472.1,2471.8,0.40498]
[1729931519743,6.05233224,2472.1,2471.8,0.40498]
[1729931519947,6.05233224,2472.1,2471.9,0.4132]
[1729931521545,3.2078,2472.1,2472.0,0.40495]
[1729931521755,0.937,2472.2,2472.0,0.81675]
[1729931521940,0.937,2472.2,2472.0,0.4118]
[1729931522650,3.2078,2472.1,2472.0,0.4118]
[1729931525540,3.2078,2472.1,2471.9,0.4132]
[1729931525741,7.65834,2472.1,2471.6,0.405]
[1729931525946,3.2078,2471.8,2471.6,0.8529]
[1729931526957,3.2078,2471.8,2471.6,0.4479]
[1729931529250,3.2078,2471.8,2471.6,0.85291]
[1729931530654,3.2078,2471.8,2471.6,0.4479]
[1729931531654,3.2078,2471.8,2471.6,0.85292]
[1729931531845,0.40498,2471.9,2471.6,0.85292]
[1729931532050,3.2078,2471.8,2471.7,0.405]
[1729931534252,0.40494,2472.1,2471.7,0.405]
[1729931534967,3.2078,2471.8,2471.7,0.405]
[1729931535252,0.40494,2472.1,2471.7,0.405]
[1729931535453,3.2078,2471.8,2471.7,0.405]
[1729931536043,3.2078,2471.8,2471.6,0.4479]
[1729931536247,3.2078,2471.8,2471.6,0.85291]
[1729931536660,3.2078,2471.8,2471.7,0.405]
[1729931538650,0.40495,2472.0,2471.7,0.405]
[1729931538954,3.61275,2472.0,2471.7,0.405]
[1729931539156,0.916,2471.9,2471.7,0.405]
[1729931542552,0.916,2471.9,2471.8,0.40498]
[1729931542763,3.2078,2472.0,2471.6,0.4479]
[1729931542958,3.2078,2472.0,2471.7,0.405]
[1729931543152,3.2078,2472.0,2471.6,0.4479]
[1729931543656,3.2078,2472.0,2471.8,0.40498]
[1729931544064,3.2078,2472.0,2471.7,0.40499]
[1729931544265,3.2078,2472.0,2471.8,0.40497]
[1729931546663,4.1238,2472.1,2471.8,0.40497]
[1729931548469,1.31308463,2471.9,2471.8,0.40497]
[1729931549670,4.1238,2472.1,2471.8,0.40497]
[1729931549871,1.31308463,2471.9,2471.8,0.40497]
[1729931566280,1.31308463,2471.9,2471.6,0.4479]
[1729931566479,0.4138,2471.8,2471.6,0.4479]
[1729931566690,1.31308463,2471.7,2471.6,0.4479]
[1729931568380,1.31308463,2471.7,2471.4,4.06414]
[1729931568580,1.31308463,2471.5,2471.4,4.48474]
[1729931568982,4.52088463,2471.5,2471.4,1.27694]
[1729931571388,1.31308463,2471.5,2471.4,1.27694]
[1729931578791,1.31308463,2471.5,2471.4,2.59002463]
[1729931578995,1.31308463,2471.5,2471.4,2.18498463]
[1729931579194,1.31308463,2471.5,2471.4,2.59003463]
[1729931580402,3.2078,2471.7,2471.6,0.40502]
[1729931580591,4.52088463,2471.7,2471.6,0.40502]
[1729931582696,1.31308463,2471.7,2471.6,0.40502]
[1729931584000,1.31308463,2471.7,2471.4,0.8719]
[1729931584197,0.896,2471.9,2471.4,1.27695]
[1729931584198,1.31308463,2471.5,2471.4,1.27695]
[1729931590201,1.31308463,2471.5,2471.2,0.40507]
[1729931590202,5.35948463,2471.5,2471.2,0.40507]
[1729931590394,3.61282,2471.6,2471.2,0.82528]
[1729931590395,1.31308463,2471.3,2471.2,0.82528]
[1729931590597,1.31308463,2471.3,2471.2,0.4202]
[1729931591096,1.31308463,2471.3,2471.2,0.82528]
[1729931591689,3.2078,2471.6,2471.5,0.40503]
[1729931591905,0.883,2471.7,2471.4,1.31308463]
[1729931592092,0.883,2471.7,2471.5,0.40502]
[1729931592299,0.883,2471.7,2471.6,0.82522]
[1729931592901,0.883,2471.7,2471.6,0.4202]
[1729931593604,0.883,2471.7,2471.6,0.82522]
[1729931593801,0.883,2471.7,2471.6,0.4202]
[1729931594001,2.19608463,2471.7,2471.6,0.4202]
[1729931598714,2.19608463,2471.7,2471.6,0.82522]
[1729931599712,2.19608463,2471.7,2471.6,0.4202]
[1729931601515,2.19608463,2471.7,2471.6,0.82522]
[1729931602515,2.19608463,2471.7,2471.6,0.4202]
[1729931603202,2.19608463,2471.7,2471.6,0.82522]
[1729931604013,2.19608463,2471.7,2471.6,0.4202]
[1729931605317,2.19608463,2471.7,2471.6,0.82522]
[1729931605709,2.19608463,2471.7,2471.6,0.4202]
[1729931610409,5.40388463,2471.7,2471.6,0.4202]
[1729931611120,2.19608463,2471.7,2471.6,0.4202]
[1729931611317,5.40388463,2471.7,2471.6,0.4202]
[1729931611713,2.19608463,2471.7,2471.6,0.4202]
[1729931612018,5.40388463,2471.7,2471.6,0.4202]
[1729931612217,2.19608463,2471.7,2471.6,0.4202]
[1729931613209,5.40388463,2471.7,2471.6,0.4202]
[1729931613815,2.19608463,2471.7,2471.6,0.4202]
[1729931614023,5.40388463,2471.7,2471.6,0.4202]
[1729931616016,5.80888463,2471.7,2471.6,0.4202]
[1729931616718,5.40388463,2471.7,2471.6,0.4202]
[1729931619419,0.40502,2471.6,2471.3,0.4276]
[1729931619623,4.52088463,2471.4,2471.3,0.4241]
[1729931620923,1.31308463,2471.4,2471.3,0.4241]
[1729931621123,4.52088463,2471.4,2471.3,0.4241]
[1729931626430,1.31308463,2471.4,2471.3,0.4241]
[1729931626637,4.52088463,2471.4,2471.3,0.4241]
[1729931627631,8.56728463,2471.4,2471.3,0.4241]
[1729931627933,8.97233463,2471.4,2471.3,0.4241]
[1729931630237,8.56728463,2471.4,2471.3,0.4241]
[1729931630437,5.35948463,2471.4,2471.3,0.4241]
[1729931630738,8.56728463,2471.4,2471.3,0.4241]
[1729931631133,4.52088463,2471.4,2471.3,0.4241]
[1729931640445,1.31308463,2471.4,2471.3,0.4241]
[1729931640649,4.52088463,2471.4,2471.3,0.4241]
[1729931642351,5.39988463,2471.4,2471.3,0.4241]
[1729931642650,5.39988463,2471.4,2471.3,0.8658]
[1729931642951,2.19208463,2471.4,2471.3,0.8658]
[1729931643250,5.39988463,2471.4,2471.3,0.8658]
[1729931645340,5.80493463,2471.4,2471.3,0.8658]
[1729931645946,5.39988463,2471.4,2471.3,0.8658]
[1729931646649,2.19208463,2471.4,2471.3,0.8658]
[1729931646949,5.39988463,2471.4,2471.3,0.8658]
[1729931647151,5.80493463,2471.4,2471.3,0.8658]
[1729931647554,5.39988463,2471.4,2471.3,0.8658]
[1729931648153,2.19208463,2471.4,2471.3,0.8658]
[1729931648658,5.39988463,2471.4,2471.3,0.8658]
[1729931648952,5.39988463,2471.4,2471.3,0.4241]
[1729931649546,2.19208463,2471.4,2471.3,0.4241]
[1729931649856,5.39988463,2471.4,2471.3,0.4241]
[1729931650861,2.19208463,2471.4,2471.3,0.4241]
[1729931651447,5.39988463,2471.4,2471.3,0.4241]
[1729931651850,2.19208463,2471.4,2471.3,0.4241]
[1729931652050,5.39988463,2471.4,2471.3,0.4241]
[1729931652454,5.39988463,2471.4,2471.3,0.8549]
[1729931652655,9.44628463,2471.4,2470.3,2.64961559]
[1729931652859,3.2078,2471.1,2470.8,0.856]
[1729931653155,1.31308463,2470.9,2470.8,1.26114]
[1729931656365,1.31308463,2470.9,2470.8,0.856]
[1729931660168,2.18108463,2470.9,2470.8,0.856]
[1729931660970,0.868,2470.9,2470.8,1.26115]
[1729931661268,2.18108463,2470.9,2470.8,1.26115]
[1729931663474,2.18108463,2470.9,2470.8,0.856]
[1729931666170,2.18108463,2470.9,2470.8,1.26115]
[1729931676271,2.18108463,2470.9,2470.8,0.856]
[1729931676972,2.18108463,2470.9,2470.8,1.26115]
[1729931680072,3.6451,2471.4,2471.0,0.40511]
[1729931680281,3.6451,2471.4,2471.1,0.82679]
[1729931680282,3.2078,2471.4,2471.1,0.82679]
[1729931680482,3.2078,2471.4,2471.2,0.8519]
[1729931680483,0.858,2471.3,2471.2,0.8519]
[1729931681371,2.17108463,2471.3,2471.2,0.8519]
[1729931681678,2.17108463,2471.3,2471.2,1.25698]
[1729931681981,5.37888463,2471.3,2471.2,0.8519]
[1729931682583,2.17108463,2471.3,2471.2,0.8519]
[1729931682885,5.37888463,2471.3,2471.2,0.8519]
[1729931683085,5.37888463,2471.3,2471.2,1.25698]
[1729931683276,3.2078,2471.6,2471.2,6.21138463]
[1729931683485,1.31308463,2471.3,2471.2,2.16498463]
[1729931683779,1.31308463,2471.3,2471.2,7.27123086]
[1729931683983,1.31308463,2471.3,2471.2,5.30338]
[1729931685083,1.31308463,2471.3,2471.2,1.25698]
[1729931685787,1.31308463,2471.3,2471.2,5.30338]
[1729931685973,1.31308463,2471.3,2471.2,1.25698]
[1729931687582,1.31308463,2471.3,2471.2,5.30338]
[1729931688076,1.31308463,2471.3,2471.2,1.25698]
[1729931691983,1.31308463,2471.3,2471.2,5.30338]
[1729931692584,0.858,2471.6,2471.3,0.40507]
[1729931692585,1.31308463,2471.4,2471.3,0.40507]
[1729931696395,1.31308463,2471.4,2471.2,2.16498463]
[1729931696396,1.31308463,2471.4,2471.2,2.57005463]
[1729931696598,1.31308463,2471.3,2471.2,2.57005463]
[1729931699189,1.31308463,2471.3,2471.2,1.25697]
[1729931700095,1.31308463,2471.3,2471.2,0.82078]
[1729931700297,1.31308463,2471.3,2470.7,5.85741558]
[1729931700601,0.9005,2471.2,2470.9,0.81842]
[1729931701096,1.31308463,2471.0,2470.9,0.81842]
[1729931703596,1.31308463,2471.1,2470.9,1.72638463]
[1729931703790,1.31308463,2471.1,2471.0,0.4051]
[1729931707301,1.31308463,2471.1,2470.9,1.72638463]
[1729931707498,1.31308463,2471.0,2470.9,0.81843]
[1729931710005,1.31308463,2471.0,2470.9,2.13151463]
[1729931715205,1.31308463,2471.0,2470.9,0.4133]
[1729931717912,1.31308463,2471.0,2470.8,0.4092]
[1729931718116,1.31308463,2470.9,2470.8,0.4092]
[1729931719320,1.31308463,2470.9,2470.7,1.23535]
[1729931719522,1.31308463,2470.8,2470.7,1.23535]
[1729931721111,1.31308463,2470.8,2470.7,2.54843463]
[1729931721915,1.31308463,2470.9,2470.8,0.40514]
[1729931724924,1.31308463,2470.9,2470.8,1.71822463]
[1729931725221,1.31308463,2470.9,2470.8,1.71823463]
[1729931725718,3.2078,2471.4,2470.8,5.36028463]
[1729931726028,5.37888463,2471.4,2471.3,0.40507]
[1729931726521,5.37888463,2471.4,2471.3,1.65797]
[1729931726721,4.52088463,2471.4,2471.3,1.2529]
[1729931728318,1.31308463,2471.4,2471.3,1.2529]
[1729931728618,4.52088463,2471.4,2471.3,1.2529]
[1729931737247,1.31308463,2471.4,2471.3,1.2529]
[1729931737648,4.52088463,2471.4,2471.3,1.2529]
[1729931737850,1.31308463,2471.4,2471.3,1.2529]
[1729931738145,4.52088463,2471.4,2471.3,1.2529]
[1729931739244,4.92594463,2471.4,2470.9,1.71821463]
[1729931739547,1.31308463,2471.1,2471.0,0.8378]
[1729931740851,1.31308463,2471.1,2471.0,1.24291]
[1729931741151,1.31308463,2471.1,2471.0,2.55599463]
[1729931742251,1.31308463,2471.1,2471.0,2.15088463]
[1729931743053,1.31308463,2471.1,2471.0,2.55599463]
[1729931743949,8.56808463,2471.1,2470.8,1.05984623]
[1729931744147,8.56808463,2471.1,2470.8,0.4469]
[1729931744148,1.31308463,2470.9,2470.8,0.4469]
[1729931744352,1.31308463,2471.0,2470.8,0.85205]
[1729931745645,1.31308463,2471.0,2470.8,2.16513463]
[1729931746651,1.31308463,2471.0,2470.8,1.75998463]
[1729931747555,1.31308463,2471.0,2470.8,2.16513463]
[1729931753448,1.31308463,2471.0,2470.8,1.75998463]
[1729931753655,1.31308463,2470.9,2470.8,1.75998463]
[1729931754946,1.31308463,2471.0,2470.8,1.75998463]
[1729931760351,1.31308463,2471.0,2470.8,2.16513463]
[1729931760552,1.31308463,2471.0,2470.8,1.75998463]
[1729931763463,1.31308463,2471.0,2470.8,2.16512463]
[1729931765159,1.31308463,2471.0,2470.8,1.75998463]
[1729931765362,1.31308463,2471.0,2470.8,2.16513463]
[1729931766663,3.2078,2471.2,2470.9,1.31308463]
[1729931766857,4.52088463,2471.2,2471.1,1.31308463]
[1729931767258,4.52088463,2471.2,2471.1,2.15758463]
[1729931767861,3.2078,2471.2,2471.1,2.15758463]
[1729931768064,3.2078,2471.2,2471.1,2.56268463]
[1729931768260,4.52088463,2471.2,2471.1,1.2496]
[1729931769361,3.2078,2471.2,2471.1,2.56268463]
[1729931769560,3.2078,2471.2,2471.1,6.60908463]
[1729931769967,4.52088463,2471.2,2471.1,2.56268463]
[1729931771461,4.52088463,2471.2,2471.1,0.8445]
[1729931771661,4.52088463,2471.2,2470.9,1.05984623]
[1729931771862,1.31308463,2471.0,2470.9,1.47444623]
[1729931775962,1.31308463,2471.0,2470.9,0.4146]
[1729931776162,4.52088463,2471.0,2470.9,0.4146]
[1729931779271,4.92599463,2471.0,2470.9,0.4146]
[1729931779568,4.92599463,2471.0,2470.3,15.65693992]
[1729931779569,0.40516,2470.8,2470.3,15.65693992]
[1729931779871,1.31308463,2470.5,2470.4,1.76488463]
[1729931780264,2.57628463,2470.5,2470.3,0.431]
[1729931780465,1.31308463,2470.4,2470.3,0.431]
[1729931781172,1.31308463,2470.4,2470.2,0.4518]
[1729931781173,4.92609463,2470.4,2470.2,0.4518]
[1729931781465,1.31308463,2470.3,2470.2,0.4518]
[1729931786573,1.31308463,2470.3,2470.0,0.4216]
[1729931786768,1.31308463,2470.1,2470.0,0.4216]
[1729931786966,5.83396926,2470.1,2469.7,1.69162]
[1729931787167,1.31308463,2469.8,2469.7,1.69162]
[1729931787376,1.31308463,2469.8,2469.7,1.2863]
[1729931789075,1.31308463,2469.8,2469.7,0.8635]
[1729931793579,1.31308463,2469.8,2469.7,0.4127]
[1729931799492,4.52088463,2469.8,2469.7,0.4127]
[1729931801999,1.31308463,2469.8,2469.7,0.4127]
[1729931802298,4.52088463,2469.8,2469.7,0.4127]
[1729931805500,1.31308463,2469.8,2469.7,0.4127]
[1729931805694,4.52088463,2469.8,2469.7,0.4127]
[1729931817005,3.2078,2469.8,2469.7,0.4127]
[1729931817211,4.52088463,2469.8,2469.7,0.4127]
[1729931817817,5.37888463,2469.8,2469.7,0.4127]
[1729931824610,2.17108463,2469.8,2469.7,0.4127]
[1729931844934,2.17108463,2469.8,2469.7,0.81803]
[1729931845427,2.17108463,2469.8,2469.7,0.4127]
[1729931845631,2.17108463,2469.8,2469.7,0.81803]
[1729931846035,2.17108463,2469.8,2469.7,0.4127]
[1729931846329,3.2078,2470.2,2470.1,0.40526]
[1729931846542,1.31308463,2470.2,2470.1,1.71834463]
[1729931847237,1.31308463,2470.2,2470.1,1.69916]
[1729931847433,1.31308463,2470.2,2470.1,1.2939]
[1729931847632,1.31308463,2470.2,2470.1,1.69916]
[1729931847833,1.31308463,2470.2,2470.1,1.2939]
[1729931854834,1.31308463,2470.2,2470.1,0.4466]
[1729931855136,1.74858463,2470.2,2470.1,0.4466]
[1729931856539,4.95638463,2470.2,2470.1,0.4466]
[1729931857741,5.36163463,2470.2,2469.8,0.8494]
[1729931857934,4.04855,2470.2,2469.9,0.4416]
[1729931858643,3.6433,2470.2,2469.9,0.4416]
[1729931858844,1.31308463,2470.0,2469.9,0.4416]
[1729931862932,3.2078,2470.2,2469.9,0.84689]
[1729931863140,1.31308463,2470.0,2469.9,0.4416]
[1729931866445,1.31308463,2470.0,2469.9,0.84689]
[1729931867842,1.31308463,2470.0,2469.9,0.4416]
[1729931869040,1.31308463,2470.0,2469.9,0.84689]
[1729931879657,1.31308463,2470.0,2469.9,0.4416]
[1729931894370,2.17008463,2470.0,2469.9,0.4416]
[1729931905081,0.857,2470.0,2469.9,0.4416]
[1729931910271,2.17008463,2470.0,2469.9,0.4416]
[1729931910672,6.21888463,2470.0,2469.7,1.05984623]
[1729931910875,4.92620463,2469.8,2469.5,2.38644623]
[1729931911074,1.31308463,2469.6,2469.5,2.38644623]
[1729931911377,1.31308463,2469.6,2469.5,1.3266]
[1729931917485,1.31308463,2469.7,2469.5,2.63968463]
[1729931924183,1.31308463,2469.7,2469.5,3.04504463]
[1729931925187,1.31308463,2469.7,2469.5,2.63968463]
[1729931928283,1.31308463,2469.6,2469.2,1.05984623]
[1729931928486,0.40541,2469.2,2469.1,0.4119]
[1729931928676,1.31308463,2469.2,2469.1,0.4119]
[1729931928880,1.71849463,2469.2,2469.1,0.4119]
[1729931929182,1.31308463,2469.2,2469.1,0.4119]
[1729931930185,1.31308463,2469.2,2469.0,0.443]
[1729931930186,0.40543,2469.1,2469.0,0.443]
[1729931930388,4.52088463,2469.1,2468.9,0.4119]
[1729931930593,2.17008463,2469.0,2468.9,0.4119]
[1729931931686,2.17008463,2469.0,2468.9,1.72498463]
[1729931933486,2.17008463,2469.0,2468.9,0.4119]
[1729931940288,0.857,2469.0,2468.9,0.81736]
[1729931940489,2.17008463,2469.0,2468.9,0.81736]
[1729931941694,2.17008463,2469.0,2468.9,0.4119]
[1729931942495,2.17008463,2469.0,2468.9,0.81736]
[1729931942703,2.17008463,2469.0,2468.9,0.4119]
[1729931943290,2.17008463,2469.0,2468.9,0.81736]
[1729931944400,2.17008463,2469.0,2468.9,0.4119]
[1729931946401,2.17008463,2469.0,2468.9,0.81736]
[1729931947598,3.2078,2469.3,2468.9,5.77538463]
[1729931947801,4.52088463,2469.3,2469.2,1.71849463]
[1729931948003,3.2078,2469.3,2469.2,1.71849463]
[1729931949396,4.52088463,2469.3,2469.2,1.71849463]
[1729931951905,3.2078,2469.3,2469.2,1.71849463]
[1729931952303,3.2078,2469.3,2469.2,5.76809463]
[1729931952509,3.2078,2469.3,2469.2,1.71849463]
[1729931953003,3.2078,2469.3,2469.2,5.76809463]
[1729931955010,3.2078,2469.3,2469.2,1.71849463]
[1729931955703,3.2078,2469.3,2469.2,0.40541]
[1729931955704,4.52088463,2469.3,2469.2,0.40541]
[1729931956201,4.52088463,2469.3,2469.2,1.68181]
[1729931956613,1.31308463,2469.3,2469.2,1.68181]
[1729931956804,1.31308463,2469.3,2469.2,1.2764]
[1729931958202,1.31308463,2469.3,2468.9,3.2078]
[1729931958402,4.0487,2469.5,2469.0,0.83073]
[1729931958403,0.40539,2469.4,2469.0,0.83073]
[1729931958712,1.31308463,2469.1,2469.0,0.83073]
[1729931959811,4.52088463,2469.4,2469.2,0.4054]
[1729931960002,5.37788463,2469.4,2469.3,0.8662]
[1729931960208,5.37788463,2469.4,2469.3,1.2915]
[1729931962010,2.17008463,2469.4,2469.3,1.2915]
[1729931969222,0.857,2469.4,2469.3,3.00997463]
[1729931971422,0.857,2469.4,2469.3,2.60458463]
[1729931972226,0.857,2469.4,2469.3,3.00997463]
[1729931973519,0.857,2469.4,2469.3,2.60458463]
[1729931975127,0.857,2469.4,2469.3,1.2915]
[1729931976420,0.857,2469.4,2469.3,1.69689]
[1729931980829,0.857,2469.4,2469.3,3.00997463]
[1729931982242,4.52088463,2469.7,2469.3,2.60458463]
[1729931982428,4.0648,2469.7,2469.6,1.71842463]
[1729931983132,3.2078,2469.7,2469.6,1.71842463]
[1729931983334,3.2078,2469.7,2469.6,1.31308463]
[1729931983534,4.52088463,2469.7,2469.6,1.31308463]
[1729931984032,4.52088463,2469.7,2469.6,2.15062463]
[1729931984434,4.52088463,2469.7,2469.6,1.74528463]
[1729931988531,3.2078,2469.7,2469.6,1.74528463]
[1729931988933,4.52088463,2469.7,2469.6,1.74528463]
[1729931989844,4.52088463,2469.7,2469.6,2.15062463]
[1729931991733,1.31308463,2469.7,2469.6,2.15062463]
[1729931992439,1.31308463,2469.7,2469.6,1.74528463]
[1729931994333,1.31308463,2469.7,2469.6,2.15062463]
[1729931994839,1.31308463,2469.7,2469.6,1.74528463]
[1729932004241,1.31308463,2469.7,2469.6,0.4322]
[1729932007345,2.16908463,2469.8,2469.6,0.4322]
[1729932008947,1.31308463,2469.7,2469.6,0.4322]
[1729932010446,2.16908463,2469.8,2469.6,0.4322]
[1729932013146,2.16908463,2469.8,2469.6,1.74528463]
[1729932013750,15.132,2470.9,2469.7,1.31308463]
[1729932013938,22.83047443,2478.0,2470.2,1.31308463]
[1729932013939,1.24603,2470.4,2470.2,1.31308463]
[1729932014141,4.52088463,2470.3,2470.2,1.31308463]
[1729932014345,8.56888463,2470.3,2470.1,1.72808463]
[1729932014548,1.31308463,2470.2,2470.1,1.72808463]
[1729932015447,1.31308463,2470.2,2470.1,0.415]
[1729932017350,4.46904,2470.3,2470.1,0.415]
[1729932017351,4.0638,2470.3,2470.1,1.72808463]
[1729932017551,5.37688463,2470.3,2470.1,2.14588463]
[1729932021659,1.31308463,2470.2,2470.1,0.8328]
[1729932022752,4.52088463,2470.2,2470.1,0.8328]
[1729932023854,1.31308463,2470.2,2470.1,0.8328]
[1729932025359,4.52088463,2470.2,2470.1,0.8328]
[1729932029760,1.31308463,2470.2,2470.1,0.8328]
[1729932030060,4.52088463,2470.2,2470.1,0.8328]
[1729932031556,1.31308463,2470.2,2470.1,0.8328]
[1729932031751,9.88196926,2470.2,2469.5,1.06262544]
[1729932031957,0.4053,2469.9,2469.6,0.4447]
[1729932032158,4.52088463,2469.7,2469.6,0.4447]
[1729932034456,3.2078,2469.7,2469.6,1.75778463]
[1729932036264,4.92622463,2469.7,2469.2,1.46802544]
[1729932036469,1.31308463,2469.4,2469.3,1.25619]
[1729932036656,1.31308463,2469.6,2469.3,2.56927463]
[1729932036860,1.31308463,2469.6,2469.4,1.31308463]
[1729932040355,1.31308463,2469.5,2469.3,2.16388463]
[1729932041055,1.31308463,2469.4,2469.3,0.8508]
[1729932043966,1.31308463,2469.5,2469.3,2.16388463]
[1729932045261,1.31308463,2469.4,2469.3,2.16388463]
[1729932048069,1.31308463,2469.5,2469.3,2.16388463]
[1729932049783,1.31308463,2469.5,2469.4,1.31308463]
[1729932049962,3.2078,2469.7,2469.4,1.71846463]
[1729932050165,3.2078,2469.7,2469.6,1.31308463]
[1729932050368,3.2078,2469.7,2469.3,0.8508]
[1729932050369,5.37688463,2469.7,2469.5,1.31308463]
[1729932050568,5.37688463,2469.7,2469.6,0.4454]
[1729932050763,5.37688463,2469.7,2469.6,0.8754]
[1729932051171,4.0638,2469.7,2469.6,2.59382463]
[1729932051570,4.0638,2469.7,2469.6,2.18848463]
[1729932052574,0.856,2469.7,2469.6,2.18848463]
[1729932054974,0.856,2469.7,2469.6,2.59382463]
[1729932055578,0.856,2469.7,2469.6,2.18848463]
[1729932055975,3.2078,2470.0,2469.7,0.40531]
[1729932056172,3.2078,2470.0,2469.8,0.4413]
[1729932056173,1.31308463,2469.9,2469.8,0.4413]
[1729932060874,1.31308463,2469.9,2469.8,1.75438463]
[1729932061076,4.0638,2470.0,2469.9,0.40529]
[1729932061279,4.0638,2470.0,2469.9,1.71837463]
[1729932061584,4.0638,2470.0,2469.9,2.13027463]
[1729932061781,4.0638,2470.0,2469.9,6.17907463]
[1729932061782,3.2078,2470.0,2469.9,6.17907463]
[1729932062077,3.2078,2470.3,2470.2,0.40523]
[1729932062278,3.2078,2470.3,2470.2,1.71831463]
[1729932062674,6.829,2471.6,2470.2,1.71831463]
[1729932062675,1.31308463,2470.9,2470.3,0.40523]
[1729932062872,1.31308463,2470.8,2470.7,1.31308463]
[1729932063579,0.4149,2471.0,2470.7,1.31308463]
[1729932063783,1.31308463,2471.2,2470.9,1.71821463]
[1729932063974,1.31308463,2471.2,2471.1,1.31308463]
[1729932064177,1.72798463,2471.3,2471.1,1.31308463]
[1729932064375,2.58398463,2471.3,2471.2,1.31308463]
[1729932064790,4.4613,2471.3,2471.2,1.31308463]
[1729932064983,0.856,2471.3,2471.2,1.71816463]
[1729932065182,1.31308463,2471.5,2471.2,1.71816463]
[1729932065380,1.31308463,2471.5,2471.4,1.31308463]
[1729932068285,1.31308463,2471.5,2471.2,1.31308463]
[1729932068585,1.31308463,2471.3,2471.2,1.31308463]
[1729932070087,4.4747,2471.7,2471.2,1.31308463]
[1729932070381,2.57998463,2471.7,2471.6,1.31308463]
[1729932071574,1.72398463,2471.7,2471.6,1.31308463]
[1729932071780,1.72398463,2471.7,2471.5,1.31308463]
[1729932072382,1.31308463,2471.6,2471.5,1.31308463]
[1729932073180,1.72398463,2471.7,2471.5,1.31308463]
[1729932084685,1.72398463,2471.7,2471.6,1.31308463]
[1729932088003,7.3908,2472.3,2471.6,5.35868463]
[1729932088185,7.3908,2472.3,2472.2,1.31308463]
[1729932088186,3.6127,2472.3,2472.2,1.31308463]
[1729932088490,4.52088463,2472.3,2472.1,1.31308463]
[1729932088695,4.92579463,2472.3,2472.1,1.31308463]
[1729932089083,4.52088463,2472.3,2472.1,1.31308463]
[1729932089498,4.92579463,2472.3,2472.1,1.31308463]
[1729932089996,4.52088463,2472.3,2472.1,1.31308463]
[1729932091390,4.92580463,2472.3,2472.1,1.31308463]
[1729932091592,1.71800463,2472.3,2472.1,1.31308463]
[1729932093598,0.40492,2472.2,2472.1,1.31308463]
[1729932093997,1.71799463,2472.3,2472.1,1.31308463]
[1729932100395,1.31308463,2472.3,2472.1,1.31308463]
[1729932101704,1.31308463,2472.3,2471.9,0.4494]
[1729932101904,3.45347463,2472.4,2472.1,1.31308463]
[1729932102201,3.45347463,2472.4,2472.2,0.8725]
[1729932102807,2.57297463,2472.4,2472.2,0.8725]
[1729932103006,2.57297463,2472.4,2472.2,2.18558463]
[1729932105410,3.6469,2472.5,2472.3,1.31308463]
[1729932105607,0.855,2472.7,2472.4,1.31308463]
[1729932105813,2.16808463,2472.7,2472.5,1.31308463]
[1729932106106,2.16808463,2472.7,2472.6,0.4391]
[1729932106306,2.16808463,2472.7,2472.6,0.8713]
[1729932106507,2.57292463,2472.7,2472.6,0.8713]
[1729932108611,2.16808463,2472.7,2472.6,0.8713]
[1729932108909,2.57292463,2472.7,2472.6,0.8713]
[1729932111301,1.25984,2472.7,2472.6,0.8713]
[1729932111507,2.57292463,2472.7,2472.6,0.8713]
[1729932113005,0.40487,2472.5,2472.3,0.4456]
[1729932113205,1.31308463,2472.4,2472.2,0.421]
[1729932114004,1.31308463,2472.4,2472.2,1.73408463]
[1729932115312,1.71795463,2472.5,2472.2,1.73408463]
[1729932115511,1.71795463,2472.5,2472.3,1.31308463]
[1729932116415,0.40488,2472.4,2472.3,1.31308463]
[1729932116804,0.40486,2472.6,2472.3,5.35788463]
[1729932117107,0.40486,2472.6,2472.2,0.421]
[1729932117108,2.57292463,2472.7,2472.4,1.31308463]
[1729932117322,2.57292463,2472.7,2472.5,0.4421]
[1729932117509,3.61261,2472.9,2472.6,1.31308463]
[1729932117710,4.52088463,2472.9,2472.7,1.31308463]
[1729932117907,4.52088463,2472.9,2472.6,0.8891]
[1729932117908,1.31308463,2472.8,2472.6,0.8891]
[1729932118102,1.71792463,2472.7,2472.6,0.8891]
[1729932118815,1.31308463,2472.7,2472.6,0.8891]
[1729932120113,1.71792463,2472.7,2472.6,0.8891]
[1729932120419,1.78202353,2472.7,2472.6,0.8891]
[1729932121012,1.78202486,2472.7,2472.6,0.8891]
[1729932121415,1.31308463,2472.7,2472.6,0.8891]